fUSD/lending_fUSD_20260413
["ID","MTS","AMOUNT","RATE_DAILY","PERIOD"]
[420375053,1776045041894,-253.56437099,0.00038156,2]
[420375055,1776045041906,-667.8448362,0.00038156,2]
[420375058,1776045041943,-25000.0,0.00038224,10]
[420375059,1776045041953,-500.0,0.00038232,15]
[420375061,1776045041973,-259.15434836,0.00038232,15]
[420375063,1776045041988,-570.9631787,0.00038232,15]
[420375065,1776045041998,-13423.97596741,0.00038233,10]
[420375072,1776045042083,-889.0,0.000344,30]
[420375074,1776045042093,-11576.02403259,0.00038233,10]
[420375076,1776045042106,-530.95,0.00038241,15]
[420375078,1776045042122,-25000.0,0.00038242,10]
[420375080,1776045042131,-158.57289898,0.00038246,2]
[420375082,1776045042140,-25000.0,0.0003825,10]
[420375084,1776045042151,-173.382548,0.00038255,25]
[420375086,1776045042167,-305.12346561,0.00038255,10]
[420375088,1776045042177,-500.0,0.00038255,15]
[420375090,1776045042186,-500.0,0.00038255,15]
[420375091,1776045042197,-500.0,0.00038255,15]
[420375094,1776045042211,-500.0,0.00038255,15]
[420375096,1776045042219,-530.95,0.00038255,15]
[420375098,1776045042228,-530.95,0.00038255,15]
[420375100,1776045042239,-530.95,0.00038255,15]
[420375102,1776045042256,-530.95,0.00038255,15]
[420375104,1776045042265,-530.95,0.00038255,15]
[420375106,1776045042280,-530.95,0.00038255,15]
[420375108,1776045042296,-530.95,0.00038255,15]
[420375110,1776045042306,-530.95,0.00038255,15]
[420375112,1776045042320,-530.95,0.00038255,15]
[420375114,1776045042340,-530.95,0.00038255,15]
[420375116,1776045042350,-530.95,0.00038255,15]
[420375118,1776045042367,-33057.3911,0.00038256,2]
[420375120,1776045042384,-1000.0,0.00038256,2]
[420375122,1776045042398,-1351834.1391,0.00038256,2]
[420375124,1776045042410,-30000.0,0.00038256,2]
[420375126,1776045042421,-4041.06424627,0.00038256,2]
[420375128,1776045042447,-25000.0,0.00038259,10]
[420375131,1776045042459,-208.597404,0.00038259,2]
[420375132,1776045042478,-530.95,0.00038267,15]
[420375134,1776045042494,-25000.0,0.00038268,10]
[420375136,1776045042506,-515.27847502,0.00038273,5]
[420375138,1776045042517,-501.92644758,0.00038273,5]
[420375140,1776045042526,-410.65219918,0.00038273,5]
[420375142,1776045042539,-500.62439048,0.00038273,5]
[420375144,1776045042561,-167.84732792,0.00038273,2]
[420375146,1776045042571,-160.50116935,0.00038273,5]
[420375149,1776045042588,-25000.0,0.00038277,10]
[420375151,1776045042598,-25000.0,0.00038286,10]
[420375152,1776045042608,-25000.0,0.00038294,10]
[420375154,1776045042617,-1000.0,0.000383,120]
[420375155,1776045042628,-200.97412,0.000383,16]
[420375156,1776045042639,-25000.0,0.00038303,10]
[420375157,1776045042648,-25000.0,0.00038312,10]
[420375158,1776045042657,-167.110503,0.00038318,21]
[420375159,1776045042671,-25000.0,0.00038321,10]
[420375160,1776045042684,-25000.0,0.0003833,10]
[420375161,1776045042695,-25000.0,0.00038338,10]
[420375162,1776045042706,-530.95,0.00038346,15]
[420375163,1776045042724,-25000.0,0.00038347,10]
[420375165,1776045042738,-669.65848702,0.00038355,30]
[420375167,1776045042747,-263.33972835,0.00038355,15]
[420375169,1776045042771,-500.0,0.00038355,15]
[420375170,1776045042780,-500.0,0.00038355,15]
[420375172,1776045042794,-526.58917959,0.00038355,15]
[420375176,1776045042821,-555.86403148,0.00038355,15]
[420375179,1776045042833,-500.0,0.00038355,15]
[420375182,1776045042847,-500.0,0.00038355,15]
[420375186,1776045042858,-500.0,0.00038355,15]
[420375190,1776045042867,-500.0,0.00038355,15]
[420375192,1776045042879,-500.0,0.00038355,7]
[420375194,1776045042895,-500.0,0.00038355,7]
[420375196,1776045042905,-500.0,0.00038355,7]
[420375198,1776045042914,-200.0,0.00038355,15]
[420375200,1776045042929,-200.0,0.00038355,15]
[420375202,1776045042942,-500.0,0.00038355,15]
[420375204,1776045042952,-189.83870996,0.00038355,15]
[420375206,1776045042962,-201.74139032,0.00038355,15]
[420375208,1776045042983,-200.0,0.00038355,15]
[420375210,1776045042992,-320.88510908,0.00038355,15]
[420375213,1776045043006,-1310.5036889,0.00038355,15]
[420375215,1776045043031,-657.11563385,0.00038355,15]
[420375217,1776045043040,-743.50770149,0.00038355,15]
[420375219,1776045043049,-454.80098099,0.00038355,15]
[420375221,1776045043078,-500.0,0.00038355,15]
[420375224,1776045043089,-500.0,0.00038355,15]
[420375226,1776045043108,-151.0,0.00038355,15]
[420375228,1776045043132,-174.61919141,0.00038355,15]
[420375230,1776045043149,-500.0,0.00038355,15]
[420375232,1776045043180,-151.0,0.00038355,15]
[420375234,1776045043238,-181.08010149,0.00038355,15]
[420375236,1776045043272,-500.0,0.00038355,15]
[420375238,1776045043290,-187.78006525,0.00038355,15]
[420375240,1776045043304,-151.0,0.00038355,15]
[420375242,1776045043333,-500.0,0.00038355,15]
[420375244,1776045043343,-155.05467212,0.00038355,15]
[420375247,1776045043377,-500.0,0.00038355,15]
[420375249,1776045043387,-194.72792766,0.00038355,15]
[420375250,1776045043408,-151.0,0.00038355,15]
[420375253,1776045043422,-500.0,0.00038355,15]
[420375254,1776045043431,-500.0,0.00038355,15]
[420375256,1776045043445,-205.46603768,0.00038355,15]
[420375258,1776045043455,-151.0,0.00038355,15]
[420375260,1776045043475,-500.0,0.00038355,15]
[420375262,1776045043486,-500.0,0.00038355,15]
[420375264,1776045043496,-151.0,0.00038355,15]
[420375266,1776045043506,-500.0,0.00038355,15]
[420375268,1776045043521,-500.0,0.00038355,15]
[420375270,1776045043530,-151.0,0.00038355,15]
[420375272,1776045043542,-639.93296103,0.00038355,15]
[420375274,1776045043551,-500.0,0.00038355,15]
[420375276,1776045043570,-155.19981583,0.00038355,15]
[420375278,1776045043580,-500.0,0.00038355,15]
[420375280,1776045043589,-500.0,0.00038355,15]
[420375282,1776045043598,-501.510248,0.00038355,15]
[420375285,1776045043616,-500.0,0.00038355,15]
[420375287,1776045043629,-500.0,0.00038355,15]
[420375288,1776045043638,-515.94523264,0.00038355,15]
[420375290,1776045043651,-174.56217712,0.00038355,15]
[420375292,1776045043660,-766.92840095,0.00038355,15]
[420375294,1776045043672,-1115.157653,0.00038355,30]
[420375296,1776045043681,-294.41694524,0.00038355,15]
[420375298,1776045043699,-155.9943314,0.00038355,15]
[420375301,1776045043710,-530.95,0.00038355,15]
[420375303,1776045043720,-530.95,0.00038355,15]
[420375304,1776045043734,-530.95,0.00038355,15]
[420375306,1776045043744,-3665.46933117,0.00038355,15]
[420375308,1776045043754,-3665.46933116,0.00038355,15]
[420375310,1776045043764,-150.0,0.00038355,2]
[420375312,1776045043779,-215.96788558,0.00038355,2]
[420375315,1776045043790,-152.488346,0.00038356,15]
[420375317,1776045043800,-3498.75636818,0.00038356,31]
[420375319,1776045043810,-500.0,0.00038356,15]
[420375321,1776045043825,-500.0,0.00038356,15]
[420375322,1776045043842,-500.0,0.00038356,15]
[420375324,1776045043852,-500.0,0.00038356,15]
[420375326,1776045043865,-500.0,0.00038356,15]
[420375329,1776045043879,-500.0,0.00038356,2]
[420375331,1776045043904,-500.0,0.00038356,15]
[420375333,1776045043913,-87920.9580967,0.00038356,2]
[420375334,1776045043922,-25000.0,0.00038356,10]
[420375336,1776045043941,-500.0,0.00038356,15]
[420375339,1776045043952,-500.0,0.00038356,15]
[420375340,1776045043962,-502.99224057,0.00038356,15]
[420375342,1776045043982,-500.0,0.00038356,15]
[420375344,1776045043992,-791.11,0.00038356,15]
[420375347,1776045044023,-404.63144836,0.00038356,15]
[420375349,1776045044033,-500.0,0.00038356,15]
[420375351,1776045044057,-507.17540235,0.00038356,15]
[420375352,1776045044073,-545.46577781,0.00038356,15]
[420375355,1776045044093,-500.0,0.00038356,15]
[420375357,1776045044104,-514.29658283,0.00038356,15]
[420375358,1776045044118,-518.29,0.00038356,15]
[420375361,1776045044127,-500.0,0.00038356,15]
[420375363,1776045044137,-500.0,0.00038356,15]
[420375364,1776045044148,-500.0,0.00038356,15]
[420375366,1776045044163,-562.49,0.00038356,15]
[420375368,1776045044173,-500.0,0.00038356,15]
[420375371,1776045044184,-796.9,0.00038356,15]
[420375373,1776045044194,-500.0,0.00038356,15]
[420375375,1776045044207,-500.0,0.00038356,15]
[420375377,1776045044217,-500.0,0.00038356,15]
[420375379,1776045044229,-500.0,0.00038356,15]
[420375381,1776045044239,-696.45,0.00038356,15]
[420375383,1776045044255,-500.0,0.00038356,15]
[420375385,1776045044265,-500.0,0.00038356,15]
[420375388,1776045044276,-500.0,0.00038356,15]
[420375390,1776045044290,-707.3,0.00038356,15]
[420375392,1776045044301,-500.0,0.00038356,15]
[420375394,1776045044314,-500.0,0.00038356,15]
[420375396,1776045044323,-500.0,0.00038356,15]
[420375398,1776045044335,-500.0,0.00038356,15]
[420375400,1776045044356,-587.96,0.00038356,15]
[420375401,1776045044365,-500.0,0.00038356,15]
[420375404,1776045044375,-877.31,0.00038356,15]
[420375406,1776045044391,-500.0,0.00038356,15]
[420375408,1776045044405,-500.0,0.00038356,15]
[420375410,1776045044414,-500.0,0.00038356,15]
[420375412,1776045044424,-500.0,0.00038356,15]
[420375414,1776045044443,-500.0,0.00038356,15]
[420375416,1776045044455,-909.74,0.00038356,15]
[420375418,1776045044480,-1066.16,0.00038356,15]
[420375420,1776045044502,-500.0,0.00038356,15]
[420375422,1776045044513,-504.53,0.00038356,15]
[420375424,1776045044532,-500.0,0.00038356,15]
[420375426,1776045044542,-767.32,0.00038356,15]
[420375428,1776045044552,-912.66,0.00038356,15]
[420375430,1776045044571,-631.1071083,0.00038356,15]
[420375431,1776045044586,-500.0,0.00038356,15]
[420375433,1776045044602,-500.0,0.00038356,15]
[420375435,1776045044627,-571.83,0.00038356,15]
[420375436,1776045044638,-1640.16,0.00038356,15]
[420375438,1776045044658,-500.0,0.00038356,15]
[420375440,1776045044698,-529.96,0.00038356,15]
[420375442,1776045044715,-500.0,0.00038356,15]
[420375444,1776045044736,-222.69589043,0.00038356,15]
[420375446,1776045044748,-1050.09,0.00038356,15]
[420375448,1776045044773,-505.63,0.00038356,15]
[420375450,1776045044782,-539.26365897,0.00038356,15]
[420375452,1776045044796,-1417.56,0.00038356,15]
[420375454,1776045044809,-500.0,0.00038356,15]
[420375456,1776045044826,-500.0,0.00038356,15]
[420375458,1776045044837,-500.0,0.00038356,15]
[420375460,1776045044852,-772.53,0.00038356,15]
[420375461,1776045044892,-500.0,0.00038356,15]
[420375463,1776045044901,-500.0,0.00038356,15]
[420375465,1776045044922,-873.24,0.00038356,15]
[420375467,1776045044934,-500.0,0.00038356,15]
[420375469,1776045044946,-500.0,0.00038356,15]
[420375471,1776045044969,-1120.29,0.00038356,15]
[420375473,1776045044979,-500.0,0.00038356,15]
[420375475,1776045044990,-500.0,0.00038356,15]
[420375477,1776045045024,-500.0,0.00038356,15]
[420375479,1776045045034,-500.0,0.00038356,15]
[420375481,1776045045044,-500.0,0.00038356,15]
[420375503,1776045045317,-500.0,0.00038356,15]
[420375505,1776045045344,-500.0,0.00038356,15]
[420375506,1776045045371,-500.0,0.00038356,15]
[420375508,1776045045380,-500.0,0.00038356,15]
[420375510,1776045045410,-1081.78,0.00038356,15]
[420375513,1776045045441,-725.9,0.00038356,15]
[420375515,1776045045455,-500.0,0.00038356,15]
[420375517,1776045045469,-510.85688679,0.00038356,15]
[420375519,1776045045480,-507.23491481,0.00038356,15]
[420375521,1776045045490,-500.0,0.00038356,15]
[420375523,1776045045516,-500.0,0.00038356,15]
[420375525,1776045045526,-500.0,0.00038356,15]
[420375527,1776045045537,-622.85,0.00038356,15]
[420375529,1776045045547,-606.71,0.00038356,15]
[420375531,1776045045568,-500.0,0.00038356,15]
[420375533,1776045045578,-566.08,0.00038356,15]
[420375535,1776045045595,-501.29264947,0.00038356,15]
[420375536,1776045045604,-500.0,0.00038356,15]
[420375539,1776045045618,-500.0,0.00038356,15]
[420375541,1776045045644,-500.0,0.00038356,15]
[420375543,1776045045655,-510.98389849,0.00038356,15]
[420375545,1776045045664,-500.0,0.00038356,15]
[420375547,1776045045685,-1634.91,0.00038356,15]
[420375549,1776045045706,-941.01,0.00038356,15]
[420375551,1776045045719,-500.0,0.00038356,15]
[420375553,1776045045729,-792.94,0.00038356,15]
[420375555,1776045045743,-500.0,0.00038356,15]
[420375557,1776045045758,-500.0,0.00038356,15]
[420375559,1776045045768,-562.11,0.00038356,15]
[420375560,1776045045778,-500.0,0.00038356,15]
[420375563,1776045045797,-622.71,0.00038356,15]
[420375564,1776045045808,-500.0,0.00038356,15]
[420375566,1776045045823,-611.9021266,0.00038356,15]
[420375568,1776045045836,-718.47,0.00038356,15]
[420375570,1776045045861,-500.0,0.00038356,15]
[420375573,1776045045872,-953.51,0.00038356,15]
[420375575,1776045045887,-2222.66,0.00038356,15]
[420375577,1776045045919,-500.0,0.00038356,15]
[420375578,1776045045930,-990.01,0.00038356,15]
[420375580,1776045045958,-1669.46,0.00038356,15]
[420375582,1776045045990,-1352.92,0.00038356,15]
[420375584,1776045046000,-500.0,0.00038356,15]
[420375586,1776045046024,-500.0,0.00038356,15]
[420375588,1776045046035,-1619.22,0.00038356,15]
[420375590,1776045046048,-500.0,0.00038356,15]
[420375592,1776045046072,-577.42456331,0.00038356,15]
[420375595,1776045046082,-500.0,0.00038356,15]
[420375596,1776045046110,-607.06,0.00038356,15]
[420375598,1776045046120,-500.0,0.00038356,15]
[420375600,1776045046145,-936.88,0.00038356,15]
[420375602,1776045046156,-500.0,0.00038356,15]
[420375604,1776045046165,-500.0,0.00038356,15]
[420375607,1776045046188,-500.0,0.00038356,15]
[420375609,1776045046198,-1589.56,0.00038356,15]
[420375611,1776045046208,-1546.76,0.00038356,15]
[420375613,1776045046219,-937.76,0.00038356,15]
[420375615,1776045046233,-500.0,0.00038356,15]
[420375617,1776045046244,-656.6,0.00038356,15]
[420375619,1776045046254,-616.48,0.00038356,15]
[420375621,1776045046268,-551.84,0.00038356,15]
[420375622,1776045046285,-538.22,0.00038356,15]
[420375625,1776045046295,-500.0,0.00038356,15]
[420375626,1776045046309,-500.0,0.00038356,15]
[420375629,1776045046325,-552.35,0.00038356,14]
[420375630,1776045046334,-500.0,0.00038356,15]
[420375632,1776045046347,-500.0,0.00038356,15]
[420375635,1776045046358,-500.0,0.00038356,15]
[420375637,1776045046378,-518.24,0.00038356,15]
[420375639,1776045046390,-500.0,0.00038356,15]
[420375640,1776045046403,-500.0,0.00038356,15]
[420375642,1776045046421,-845.43,0.00038356,15]
[420375645,1776045046434,-500.0,0.00038356,15]
[420375647,1776045046447,-1323.56,0.00038356,15]
[420375648,1776045046464,-500.0,0.00038356,15]
[420375650,1776045046476,-1364.85,0.00038356,15]
[420375652,1776045046492,-1903.17,0.00038356,15]
[420375654,1776045046510,-500.0,0.00038356,15]
[420375656,1776045046521,-590.95,0.00038356,15]
[420375658,1776045046536,-2118.26,0.00038356,15]
[420375660,1776045046579,-1067.1,0.00038356,7]
[420375662,1776045046613,-1021.75,0.00038356,15]
[420375665,1776045046634,-1028.39,0.00038356,15]
[420375667,1776045046662,-500.0,0.00038356,15]
[420375669,1776045046671,-500.0,0.00038356,15]
[420375671,1776045046686,-1047.56,0.00038356,15]
[420375673,1776045046702,-783.46,0.00038356,15]
[420375675,1776045046711,-645.13,0.00038356,15]
[420375677,1776045046740,-500.0,0.00038356,15]
[420375679,1776045046750,-500.0,0.00038356,7]
[420375681,1776045046760,-500.0,0.00038356,15]
[420375683,1776045046781,-1645.68,0.00038356,15]
[420375685,1776045046790,-530.83,0.00038356,15]
[420375687,1776045046799,-1228.63,0.00038356,15]
[420375689,1776045046814,-500.0,0.00038356,15]
[420375691,1776045046830,-193.39514745,0.00038356,15]
[420375693,1776045046839,-500.0,0.00038356,15]
[420375695,1776045046848,-535.68,0.00038356,15]
[420375697,1776045046869,-500.0,0.00038356,15]
[420375699,1776045046892,-557.93,0.00038356,15]
[420375701,1776045046901,-869.9,0.00038356,15]
[420375703,1776045046910,-504.61349008,0.00038356,15]
[420375704,1776045046926,-500.0,0.00038356,15]
[420375706,1776045046936,-2934.93,0.00038356,15]
[420375708,1776045046945,-739.62,0.00038356,10]
[420375710,1776045046955,-500.0,0.00038356,15]
[420375712,1776045046970,-500.0,0.00038356,15]
[420375714,1776045046978,-500.0,0.00038356,15]
[420375716,1776045046987,-596.15,0.00038356,15]
[420375718,1776045046999,-500.0,0.00038356,15]
[420375719,1776045047017,-500.0,0.00038356,15]
[420375721,1776045047027,-509.40510594,0.00038356,15]
[420375724,1776045047039,-2291.01,0.00038356,15]
[420375726,1776045047055,-500.0,0.00038356,15]
[420375728,1776045047065,-1647.84,0.00038356,15]
[420375730,1776045047075,-500.0,0.00038356,120]
[420375731,1776045047087,-562.41,0.00038356,15]
[420375733,1776045047106,-500.0,0.00038356,15]
[420375736,1776045047117,-1921.08,0.00038356,15]
[420375738,1776045047131,-500.0,0.00038356,15]
[420375740,1776045047168,-500.0,0.00038356,15]
[420375742,1776045047191,-1192.64,0.00038356,15]
[420375743,1776045047245,-511.31251961,0.00038356,15]
[420375745,1776045047299,-606.3,0.00038356,15]
[420375747,1776045047360,-500.0,0.00038356,15]
[420375750,1776045047400,-944.95,0.00038356,15]
[420375752,1776045047409,-500.0,0.00038356,15]
[420375754,1776045047426,-1347.73,0.00038356,15]
[420375756,1776045047443,-818.57,0.00038356,15]
[420375758,1776045047452,-500.0,0.00038356,15]
[420375760,1776045047470,-500.0,0.00038356,15]
[420375762,1776045047487,-720.41,0.00038356,15]
[420375764,1776045047512,-570.58,0.00038356,15]
[420375766,1776045047526,-534.25,0.00038356,15]
[420375768,1776045047549,-574.61,0.00038356,15]
[420375770,1776045047562,-500.0,0.00038356,15]
[420375772,1776045047574,-726.29,0.00038356,15]
[420375774,1776045047611,-500.0,0.00038356,15]
[420375777,1776045047640,-756.84,0.00038356,15]
[420375779,1776045047649,-500.0,0.00038356,15]
[420375781,1776045047677,-500.0,0.00038356,15]
[420375783,1776045047688,-1455.8,0.00038356,15]
[420375785,1776045047707,-1740.92,0.00038356,15]
[420375786,1776045047734,-1211.46,0.00038356,15]
[420375788,1776045047744,-500.0,0.00038356,15]
[420375790,1776045047753,-716.37,0.00038356,15]
[420375793,1776045047766,-500.0,0.00038356,15]
[420375795,1776045047780,-975.01,0.00038356,15]
[420375797,1776045047791,-500.0,0.00038356,15]
[420375799,1776045047802,-500.0,0.00038356,15]
[420375801,1776045047811,-599.5756622,0.00038356,15]
[420375803,1776045047823,-500.0,0.00038356,15]
[420375805,1776045047832,-519.23,0.00038356,15]
[420375806,1776045047841,-500.0,0.00038356,15]
[420375808,1776045047850,-500.3055718,0.00038356,15]
[420375810,1776045047865,-1341.38,0.00038356,15]
[420375812,1776045047876,-500.0,0.00038356,15]
[420375814,1776045047886,-632.2531995,0.00038356,15]
[420375816,1776045047896,-500.0,0.00038356,15]
[420375819,1776045047914,-500.0,0.00038356,15]
[420375821,1776045047923,-500.0,0.00038356,15]
[420375822,1776045047934,-1016.54,0.00038356,15]
[420375824,1776045047954,-1767.74,0.00038356,15]
[420375826,1776045047965,-508.14475751,0.00038356,15]
[420375828,1776045047974,-500.0,0.00038356,15]
[420375830,1776045048016,-826.92,0.00038356,15]
[420375832,1776045048026,-623.55,0.00038356,15]
[420375834,1776045048036,-942.64,0.00038356,15]
[420375837,1776045048070,-500.0,0.00038356,15]
[420375838,1776045048080,-500.0,0.00038356,15]
[420375840,1776045048090,-547.63,0.00038356,15]
[420375842,1776045048113,-500.0,0.00038356,15]
[420375844,1776045048141,-623.88,0.00038356,15]
[420375847,1776045048173,-1323.01,0.00038356,15]
[420375849,1776045048184,-877.39,0.00038356,15]
[420375851,1776045048198,-505.91237246,0.00038356,15]
[420375853,1776045048210,-539.4,0.00038356,15]
[420375855,1776045048222,-1572.86,0.00038356,10]
[420375857,1776045048233,-502.9856906,0.00038356,15]
[420375859,1776045048242,-500.0,0.00038356,15]
[420375861,1776045048255,-500.0,0.00038356,15]
[420375862,1776045048269,-500.0,0.00038356,15]
[420375864,1776045048278,-500.0,0.00038356,15]
[420375866,1776045048289,-769.05,0.00038356,15]
[420375869,1776045048311,-507.87901142,0.00038356,15]
[420375870,1776045048321,-500.0,0.00038356,15]
[420375871,1776045048345,-1302.03,0.00038356,15]
[420375872,1776045048355,-500.0,0.00038356,15]
[420375873,1776045048365,-882.58,0.00038356,15]
[420375874,1776045048395,-500.0,0.00038356,15]
[420375875,1776045048407,-737.29,0.00038356,15]
[420375876,1776045048433,-579.26,0.00038356,15]
[420375877,1776045048443,-500.0,0.00038356,15]
[420375878,1776045048463,-850.8,0.00038356,15]
[420375879,1776045048474,-1330.57,0.00038356,15]
[420375880,1776045048484,-890.12,0.00038356,15]
[420375882,1776045048503,-500.0,0.00038356,15]
[420375884,1776045048513,-573.84597043,0.00038356,15]
[420375886,1776045048522,-1205.8,0.00038356,15]
[420375888,1776045048535,-543.12110556,0.00038356,15]
[420375890,1776045048551,-1151.94,0.00038356,15]
[420375892,1776045048561,-500.0,0.00038356,15]
[420375894,1776045048572,-500.0,0.00038356,15]
[420375895,1776045048590,-500.0,0.00038356,15]
[420375897,1776045048609,-1291.49,0.00038356,15]
[420375899,1776045048618,-1655.72,0.00038356,15]
[420375901,1776045048631,-500.0,0.00038356,15]
[420375903,1776045048687,-500.0,0.00038356,15]
[420375905,1776045048696,-785.47,0.00038356,15]
[420375907,1776045048705,-619.93963469,0.00038356,15]
[420375909,1776045048731,-500.0,0.00038356,15]
[420375911,1776045048740,-169.7362784,0.00038356,2]
[420375913,1776045048765,-500.0,0.00038356,15]
[420375915,1776045048774,-552.43,0.00038356,15]
[420375917,1776045048796,-500.0,0.00038356,15]
[420375919,1776045048805,-500.0,0.00038356,15]
[420375921,1776045048826,-668.46,0.00038356,15]
[420375923,1776045048836,-500.0,0.00038356,15]
[420375925,1776045048845,-502.47517372,0.00038356,14]
[420375926,1776045048863,-845.76,0.00038356,15]
[420375928,1776045048884,-968.44,0.00038356,15]
[420375930,1776045048893,-500.0,0.00038356,15]
[420375932,1776045048904,-500.0,0.00038356,15]
[420375934,1776045048918,-1079.06,0.00038356,15]
[420375936,1776045048932,-500.0,0.00038356,15]
[420375938,1776045048942,-500.0,0.00038356,15]
[420375940,1776045048954,-500.0,0.00038356,15]
[420375942,1776045048975,-1246.57,0.00038356,15]
[420375944,1776045048985,-500.0,0.00038356,15]
[420375946,1776045048995,-500.0,0.00038356,15]
[420375948,1776045049012,-500.0,0.00038356,15]
[420375950,1776045049023,-500.0,0.00038356,15]
[420375952,1776045049032,-1019.11,0.00038356,15]
[420375953,1776045049041,-572.82305883,0.00038356,15]
[420375955,1776045049058,-865.28,0.00038356,15]
[420375958,1776045049070,-1606.63,0.00038356,15]
[420375960,1776045049079,-500.0,0.00038356,15]
[420375962,1776045049089,-500.0,0.00038356,15]
[420375964,1776045049103,-834.91,0.00038356,15]
[420375966,1776045049117,-500.0,0.00038356,15]
[420375967,1776045049141,-500.0,0.00038356,15]
[420375969,1776045049151,-500.0,0.00038356,15]
[420375971,1776045049179,-678.63,0.00038356,15]
[420375973,1776045049188,-500.0,0.00038356,15]
[420375975,1776045049200,-2614.37,0.00038356,15]
[420375977,1776045049221,-500.0,0.00038356,15]
[420375979,1776045049230,-500.0,0.00038356,15]
[420375981,1776045049240,-150.81140039,0.00038356,15]
[420375983,1776045049250,-549.78,0.00038356,15]
[420375985,1776045049265,-500.0,0.00038356,15]
[420375987,1776045049277,-1107.9,0.00038356,15]
[420375989,1776045049288,-500.0,0.00038356,15]
[420375991,1776045049301,-1405.99,0.00038356,15]
[420375993,1776045049311,-732.06,0.00038356,15]
[420375995,1776045049325,-500.0,0.00038356,15]
[420375997,1776045049342,-500.0,0.00038356,15]
[420375999,1776045049352,-500.0,0.00038356,15]
[420376001,1776045049366,-782.13,0.00038356,15]
[420376003,1776045049383,-1700.7,0.00038356,15]
[420376005,1776045049394,-500.0,0.00038356,15]
[420376007,1776045049411,-500.0,0.00038356,15]
[420376008,1776045049438,-500.0,0.00038356,15]
[420376010,1776045049448,-500.0,0.00038356,15]
[420376012,1776045049463,-500.0,0.00038356,15]
[420376014,1776045049487,-1623.45,0.00038356,15]
[420376016,1776045049500,-1554.9,0.00038356,15]
[420376019,1776045049526,-1351.18,0.00038356,15]
[420376020,1776045049538,-500.0,0.00038356,15]
[420376022,1776045049555,-506.77765862,0.00038356,15]
[420376024,1776045049573,-500.0,0.00038356,15]
[420376026,1776045049584,-261.68038549,0.00038356,15]
[420376028,1776045049595,-297.36621287,0.00038356,15]
[420376030,1776045049608,-500.0,0.00038356,15]
[420376032,1776045049617,-658.74,0.00038356,15]
[420376034,1776045049631,-500.0,0.00038356,15]
[420376035,1776045049641,-500.0,0.00038356,15]
[420376037,1776045049653,-585.16,0.00038356,2]
[420376039,1776045049663,-997.66,0.00038356,15]
[420376041,1776045049675,-500.0,0.00038356,15]
[420376043,1776045049685,-500.0,0.00038356,15]
[420376045,1776045049695,-1937.76,0.00038356,15]
[420376047,1776045049705,-2549.12120421,0.00038356,10]
[420376049,1776045049715,-500.0,0.00038356,15]
[420376051,1776045049727,-500.0,0.00038356,15]
[420376053,1776045049737,-500.0,0.00038356,15]
[420376054,1776045049747,-500.0,0.00038356,15]
[420376055,1776045049762,-500.0,0.00038356,15]
[420376056,1776045049772,-500.0,0.00038356,15]